[Event "Titled Tuesday Blitz October 11 Early 2022"]
[White "Kuchava, Ana"]
[Black "Demin, Vladimir"]
[WhiteFideId "13605348"]
[BlackFideId "4167457"]
[WhiteElo "2001"]
[BlackElo "2569"]
[Result "0-1"]
[Round "01"]
[TimeControl "180+1"]
[Date "2022.10.12"]
[WhiteClock "0:00:02"]
[BlackClock "0:00:06"]

1. d4 {[%clk 0:02:43]}  Nf6 {[%clk 0:02:58]} 2. Nf3 {[%clk 0:02:34]}  d5 {[%clk 0:02:57]} 3. c4 {[%clk 0:02:32]}  e6 {[%clk 0:02:57]} 4. Nc3 {[%clk 0:02:28]}  c6 {[%clk 0:02:56]} 5. e3 {[%clk 0:02:27]}  Nbd7 {[%clk 0:02:54]} 6. Bd3 {[%clk 0:02:22]}  dxc4 {[%clk 0:02:51]} 7. Bxc4 {[%clk 0:02:22]}  b5 {[%clk 0:02:52]} 8. Bd3 {[%clk 0:02:19]}  a6 {[%clk 0:02:52]} 9. O-O {[%clk 0:02:17]}  Bb7 {[%clk 0:02:46]} 10. e4 {[%clk 0:02:06]}  c5 {[%clk 0:02:45]} 11. Bg5 {[%clk 0:01:41]}  cxd4 {[%clk 0:02:40]} 12. Nxd4 {[%clk 0:01:40]}  Bc5 {[%clk 0:02:35]} 13. Nb3 {[%clk 0:01:32]}  Bb6 {[%clk 0:02:31]} 14. Qe2 {[%clk 0:01:14]}  h6 {[%clk 0:01:55]} 15. Bh4 {[%clk 0:01:12]}  Ne5 {[%clk 0:01:27]} 16. Rad1 {[%clk 0:00:58]}  Qb8 {[%clk 0:01:16]} 17. Kh1 {[%clk 0:00:38]}  Bc7 {[%clk 0:01:04]} 18. f4 {[%clk 0:00:22]}  Nxd3 {[%clk 0:01:02]} 19. Qxd3 {[%clk 0:00:22]}  O-O {[%clk 0:00:49]} 20. Bxf6 {[%clk 0:00:19]}  gxf6 {[%clk 0:00:50]} 21. Qg3+ {[%clk 0:00:15]}  Kh7 {[%clk 0:00:50]} 22. Qh4 {[%clk 0:00:16]}  b4 {[%clk 0:00:39]} 23. Ne2 {[%clk 0:00:10]}  Bxe4 {[%clk 0:00:36]} 24. Nc5 {[%clk 0:00:09]}  Bd5 {[%clk 0:00:26]} 25. Qxf6 {[%clk 0:00:07]}  Bd8 {[%clk 0:00:22]} 26. Qe5 {[%clk 0:00:06]}  Qxe5 {[%clk 0:00:14]} 27. fxe5 {[%clk 0:00:07]}  Ra7 {[%clk 0:00:15]} 28. Nf4 {[%clk 0:00:06]}  Ba8 {[%clk 0:00:14]} 29. Nfxe6 {[%clk 0:00:04]}  Be7 {[%clk 0:00:13]} 30. Nxf8+ {[%clk 0:00:04]}  Bxf8 {[%clk 0:00:13]} 31. Nd7 {[%clk 0:00:03]}  Kg8 {[%clk 0:00:11]} 32. Nf6+ {[%clk 0:00:03]}  Kg7 {[%clk 0:00:10]} 33. Rd8 {[%clk 0:00:03]}  Bc6 {[%clk 0:00:07]} 34. Rfd1 {[%clk 0:00:03]}  a5 {[%clk 0:00:06]} 35. Rxf8 {[%clk 0:00:03]}  Kxf8 {[%clk 0:00:05]} 36. Rd8+ {[%clk 0:00:02]}  Ke7 {[%clk 0:00:06]} 0-1


[Site "https://www.chess.com"]

[Event "Titled Tuesday Blitz October 11 Early 2022"]
[White "Lamaze, Simon"]
[Black "Villanueva, Nelson"]
[WhiteFideId "36069264"]
[BlackFideId "5204127"]
[WhiteElo "2272"]
[BlackElo "2278"]
[Result "0-1"]
[Round "01"]
[TimeControl "180+1"]
[Date "2022.10.12"]
[WhiteClock "0:00:44"]
[BlackClock "0:01:30"]

1. e4 {[%clk 0:03:00]}  c6 {[%clk 0:02:50]} 2. d4 {[%clk 0:03:00]}  d5 {[%clk 0:02:37]} 3. e5 {[%clk 0:03:00]}  c5 {[%clk 0:02:37]} 4. dxc5 {[%clk 0:03:01]}  e6 {[%clk 0:02:38]} 5. c3 {[%clk 0:03:01]}  Nd7 {[%clk 0:02:38]} 6. Nf3 {[%clk 0:02:57]}  Bxc5 {[%clk 0:02:38]} 7. Nbd2 {[%clk 0:02:52]}  Be7 {[%clk 0:02:38]} 8. Bd3 {[%clk 0:02:48]}  h5 {[%clk 0:02:37]} 9. Nb3 {[%clk 0:02:43]}  Nh6 {[%clk 0:02:34]} 10. Nbd4 {[%clk 0:02:43]}  g6 {[%clk 0:02:33]} 11. Nxe6 {[%clk 0:02:18]}  fxe6 {[%clk 0:02:29]} 12. Bxg6+ {[%clk 0:02:18]}  Kf8 {[%clk 0:02:29]} 13. Bxh5 {[%clk 0:02:12]}  Nf5 {[%clk 0:02:26]} 14. Bg4 {[%clk 0:02:11]}  Nc5 {[%clk 0:02:24]} 15. Bxf5 {[%clk 0:02:11]}  exf5 {[%clk 0:02:23]} 16. Be3 {[%clk 0:02:10]}  Ne4 {[%clk 0:02:23]} 17. Nd4 {[%clk 0:02:05]}  Bc5 {[%clk 0:02:17]} 18. Nxf5 {[%clk 0:02:01]}  Bxf5 {[%clk 0:02:16]} 19. Bxc5+ {[%clk 0:02:02]}  Nxc5 {[%clk 0:02:17]} 20. Qf3 {[%clk 0:02:02]}  Qg5 {[%clk 0:02:11]} 21. Qxd5 {[%clk 0:01:56]}  Ne6 {[%clk 0:02:10]} 22. Qxb7 {[%clk 0:01:49]}  Rd8 {[%clk 0:02:09]} 23. O-O {[%clk 0:01:43]}  Qf4 {[%clk 0:01:59]} 24. g3 {[%clk 0:01:38]}  Qe4 {[%clk 0:01:52]} 25. Qxe4 {[%clk 0:01:38]}  Bxe4 {[%clk 0:01:53]} 26. Rad1 {[%clk 0:01:38]}  Ke7 {[%clk 0:01:46]} 27. f4 {[%clk 0:01:36]}  Nc5 {[%clk 0:01:43]} 28. h4 {[%clk 0:01:30]}  Rdg8 {[%clk 0:01:40]} 29. Kh2 {[%clk 0:01:27]}  Bf5 {[%clk 0:01:38]} 30. Rfe1 {[%clk 0:01:10]}  Ne4 {[%clk 0:01:37]} 31. Re3 {[%clk 0:01:11]}  Nf2 {[%clk 0:01:37]} 32. Rde1 {[%clk 0:01:01]}  Ng4+ {[%clk 0:01:37]} 33. Kh1 {[%clk 0:00:59]}  Nxe3 {[%clk 0:01:38]} 34. Rxe3 {[%clk 0:01:00]}  Rd8 {[%clk 0:01:36]} 35. Re2 {[%clk 0:00:58]}  Rd3 {[%clk 0:01:36]} 36. Kh2 {[%clk 0:00:56]}  Bg4 {[%clk 0:01:34]} 37. Re4 {[%clk 0:00:50]}  Rhd8 {[%clk 0:01:34]} 38. Kg1 {[%clk 0:00:47]}  Rd2 {[%clk 0:01:30]} 39. Rb4 {[%clk 0:00:44]}  Rc2 {[%clk 0:01:30]} 0-1


[Site "https://www.chess.com"]

[Event "Titled Tuesday Blitz October 11 Early 2022"]
[White "Lewtak, Damian"]
[Black "Alexikov, Alexander"]
[WhiteFideId "1141724"]
[BlackFideId "14103958"]
[WhiteElo "2329"]
[BlackElo "2222"]
[Result "1-0"]
[Round "01"]
[TimeControl "180+1"]
[Date "2022.10.12"]
[WhiteClock "0:00:34"]
[BlackClock "0:00:02"]

1. d4 {[%clk 0:03:00]}  Nf6 {[%clk 0:02:58]} 2. c4 {[%clk 0:02:55]}  g6 {[%clk 0:02:58]} 3. h4 {[%clk 0:02:55]}  c5 {[%clk 0:02:51]} 4. d5 {[%clk 0:02:53]}  h5 {[%clk 0:02:46]} 5. Nc3 {[%clk 0:02:52]}  d6 {[%clk 0:02:45]} 6. Nf3 {[%clk 0:02:46]}  Bg7 {[%clk 0:02:45]} 7. Ng5 {[%clk 0:02:47]}  Nh7 {[%clk 0:02:39]} 8. Nxh7 {[%clk 0:02:45]}  Rxh7 {[%clk 0:02:38]} 9. Bd2 {[%clk 0:02:41]}  a6 {[%clk 0:02:37]} 10. a4 {[%clk 0:02:40]}  a5 {[%clk 0:02:35]} 11. e4 {[%clk 0:02:38]}  Na6 {[%clk 0:02:26]} 12. Be2 {[%clk 0:02:38]}  Nb4 {[%clk 0:02:24]} 13. g3 {[%clk 0:02:31]}  b6 {[%clk 0:02:22]} 14. O-O {[%clk 0:02:30]}  e5 {[%clk 0:02:00]} 15. Nb5 {[%clk 0:02:13]}  f5 {[%clk 0:01:33]} 16. Bg5 {[%clk 0:02:11]}  Bf6 {[%clk 0:01:31]} 17. Qd2 {[%clk 0:02:04]}  fxe4 {[%clk 0:01:02]} 18. Kh2 {[%clk 0:01:52]}  Bf5 {[%clk 0:00:59]} 19. Rae1 {[%clk 0:01:46]}  Rf7 {[%clk 0:00:54]} 20. Bxf6 {[%clk 0:01:31]}  Qxf6 {[%clk 0:00:53]} 21. Bd1 {[%clk 0:01:23]}  Kd7 {[%clk 0:00:49]} 22. Qg5 {[%clk 0:01:07]}  Nd3 {[%clk 0:00:42]} 23. Re2 {[%clk 0:01:04]}  Qxg5 {[%clk 0:00:39]} 24. hxg5 {[%clk 0:01:03]}  Raf8 {[%clk 0:00:38]} 25. Rd2 {[%clk 0:00:47]}  Bg4 {[%clk 0:00:35]} 26. Bxg4+ {[%clk 0:00:43]}  hxg4 {[%clk 0:00:34]} 27. Kg2 {[%clk 0:00:43]}  Rh7 {[%clk 0:00:30]} 28. Nc3 {[%clk 0:00:38]}  Rfh8 {[%clk 0:00:25]} 29. Rg1 {[%clk 0:00:39]}  e3 {[%clk 0:00:08]} 30. Rxd3 {[%clk 0:00:39]}  Rh2+ {[%clk 0:00:07]} 31. Kf1 {[%clk 0:00:39]}  Rxf2+ {[%clk 0:00:07]} 32. Ke1 {[%clk 0:00:39]}  Rxb2 {[%clk 0:00:07]} 33. Nd1 {[%clk 0:00:38]}  Ra2 {[%clk 0:00:05]} 34. Rxe3 {[%clk 0:00:35]}  Rxa4 {[%clk 0:00:02]} 35. Rf1 {[%clk 0:00:34]} 1-0


[Site "https://www.chess.com"]

[Event "Titled Tuesday Blitz October 11 Early 2022"]
[White "Lopez, Henry"]
[Black "Haukenfrers, Dale"]
[WhiteFideId "5203830"]
[BlackFideId "2603780"]
[WhiteElo "2177"]
[BlackElo "1954"]
[Result "1-0"]
[Round "01"]
[TimeControl "180+1"]
[Date "2022.10.12"]
[WhiteClock "0:00:44"]
[BlackClock "0:00:15"]

1. d4 {[%clk 0:03:00]}  c6 {[%clk 0:03:00]} 2. Nf3 {[%clk 0:03:00]}  d6 {[%clk 0:03:01]} 3. c4 {[%clk 0:03:00]}  g6 {[%clk 0:03:02]} 4. Nc3 {[%clk 0:03:00]}  Bg7 {[%clk 0:03:02]} 5. e4 {[%clk 0:03:00]}  Bg4 {[%clk 0:03:02]} 6. Be3 {[%clk 0:02:59]}  Nd7 {[%clk 0:02:59]} 7. Be2 {[%clk 0:02:59]}  Ngf6 {[%clk 0:02:53]} 8. O-O {[%clk 0:02:59]}  O-O {[%clk 0:02:52]} 9. Rc1 {[%clk 0:02:59]}  Re8 {[%clk 0:02:44]} 10. h3 {[%clk 0:02:56]}  Bxf3 {[%clk 0:02:44]} 11. Bxf3 {[%clk 0:02:57]}  e5 {[%clk 0:02:44]} 12. d5 {[%clk 0:02:57]}  cxd5 {[%clk 0:02:23]} 13. cxd5 {[%clk 0:02:56]}  a6 {[%clk 0:02:20]} 14. a4 {[%clk 0:02:55]}  Rc8 {[%clk 0:02:16]} 15. Re1 {[%clk 0:02:46]}  Qa5 {[%clk 0:02:09]} 16. Qb3 {[%clk 0:02:34]}  Rc7 {[%clk 0:02:00]} 17. Qa3 {[%clk 0:02:24]}  Rc4 {[%clk 0:01:49]} 18. Be2 {[%clk 0:02:09]}  Rxe4 {[%clk 0:01:48]} 19. Nxe4 {[%clk 0:02:05]}  Nxe4 {[%clk 0:01:49]} 20. Bd3 {[%clk 0:01:50]}  Nef6 {[%clk 0:01:46]} 21. Qxd6 {[%clk 0:01:46]}  Qxa4 {[%clk 0:01:34]} 22. Red1 {[%clk 0:01:40]}  Qh4 {[%clk 0:01:28]} 23. Be2 {[%clk 0:01:35]}  Bf8 {[%clk 0:01:17]} 24. Qc7 {[%clk 0:01:34]}  Qb4 {[%clk 0:01:10]} 25. d6 {[%clk 0:01:26]}  Qxb2 {[%clk 0:01:06]} 26. Bc4 {[%clk 0:01:25]}  b5 {[%clk 0:01:03]} 27. Bd5 {[%clk 0:01:19]}  Nxd5 {[%clk 0:00:57]} 28. Qxd7 {[%clk 0:01:18]}  Nxe3 {[%clk 0:00:55]} 29. fxe3 {[%clk 0:01:01]}  Re6 {[%clk 0:00:46]} 30. Qc8 {[%clk 0:00:56]}  Rf6 {[%clk 0:00:29]} 31. d7 {[%clk 0:00:51]}  Qf2+ {[%clk 0:00:28]} 32. Kh1 {[%clk 0:00:50]}  Rf3 {[%clk 0:00:27]} 33. d8=Q {[%clk 0:00:48]}  Rxh3+ {[%clk 0:00:17]} 34. Qxh3 {[%clk 0:00:47]}  Kg7 {[%clk 0:00:16]} 35. Rc8 {[%clk 0:00:45]}  Be7 {[%clk 0:00:15]} 36. Qh8# {[%clk 0:00:44]} 1-0


[Site "https://www.chess.com"]

[Event "Titled Tuesday Blitz October 11 Early 2022"]
[White "Mamedov, Rauf"]
[Black "Borgaonkar Akshay"]
[WhiteFideId "13401653"]
[BlackFideId "25639110"]
[WhiteElo "2650"]
[BlackElo "2063"]
[Result "1-0"]
[Round "01"]
[TimeControl "180+1"]
[Date "2022.10.11"]
[WhiteClock "0:02:29"]
[BlackClock "0:00:50"]

1. e4 {[%clk 0:02:59]}  c5 {[%clk 0:02:59]} 2. Nf3 {[%clk 0:02:59]}  e6 {[%clk 0:02:59]} 3. c3 {[%clk 0:02:59]}  Nf6 {[%clk 0:02:58]} 4. e5 {[%clk 0:03:00]}  Nd5 {[%clk 0:02:58]} 5. Bc4 {[%clk 0:03:01]}  Nb6 {[%clk 0:02:56]} 6. Bb3 {[%clk 0:03:01]}  Nc6 {[%clk 0:02:54]} 7. d4 {[%clk 0:03:01]}  d5 {[%clk 0:02:52]} 8. O-O {[%clk 0:03:00]}  Bd7 {[%clk 0:02:47]} 9. Re1 {[%clk 0:02:57]}  a5 {[%clk 0:02:44]} 10. a3 {[%clk 0:02:55]}  Be7 {[%clk 0:02:40]} 11. Nbd2 {[%clk 0:02:54]}  O-O {[%clk 0:02:40]} 12. Nf1 {[%clk 0:02:54]}  h6 {[%clk 0:02:38]} 13. Bc2 {[%clk 0:02:53]}  c4 {[%clk 0:02:36]} 14. Bb1 {[%clk 0:02:52]}  h5 {[%clk 0:02:01]} 15. Ng3 {[%clk 0:02:49]}  h4 {[%clk 0:01:56]} 16. Nh5 {[%clk 0:02:45]}  g6 {[%clk 0:01:55]} 17. Qd2 {[%clk 0:02:41]}  Re8 {[%clk 0:01:45]} 18. Qf4 {[%clk 0:02:30]}  Qc7 {[%clk 0:00:52]} 19. Qh6 {[%clk 0:02:29]}  Bf8 {[%clk 0:00:50]} 1-0


[Site "https://www.chess.com"]

[Event "Titled Tuesday Blitz October 11 Early 2022"]
[White "Manukian, Artak"]
[Black "Timofeev, Artyom"]
[WhiteFideId "13301373"]
[BlackFideId "4140419"]
[WhiteElo "2509"]
[BlackElo "2579"]
[Result "0-1"]
[Round "01"]
[TimeControl "180+1"]
[Date "2022.10.11"]
[WhiteClock "0:00:02"]
[BlackClock "0:01:47"]

1. e4 {[%clk 0:01:57]}  c6 {[%clk 0:02:58]} 2. d4 {[%clk 0:01:51]}  d5 {[%clk 0:02:58]} 3. e5 {[%clk 0:01:51]}  Bf5 {[%clk 0:02:58]} 4. Nf3 {[%clk 0:01:26]}  e6 {[%clk 0:02:57]} 5. c4 {[%clk 0:01:16]}  dxc4 {[%clk 0:02:54]} 6. Bxc4 {[%clk 0:01:15]}  Ne7 {[%clk 0:02:55]} 7. Nc3 {[%clk 0:01:14]}  Nd7 {[%clk 0:02:54]} 8. Nh4 {[%clk 0:01:14]}  Nb6 {[%clk 0:02:53]} 9. Bb3 {[%clk 0:01:14]}  Qd7 {[%clk 0:02:52]} 10. Bg5 {[%clk 0:01:11]}  Bg6 {[%clk 0:02:50]} 11. O-O {[%clk 0:01:10]}  O-O-O {[%clk 0:02:49]} 12. Ne2 {[%clk 0:00:59]}  Kb8 {[%clk 0:02:41]} 13. a4 {[%clk 0:00:57]}  Nbd5 {[%clk 0:02:39]} 14. Nxg6 {[%clk 0:00:51]}  hxg6 {[%clk 0:02:38]} 15. a5 {[%clk 0:00:43]}  a6 {[%clk 0:02:38]} 16. Qd2 {[%clk 0:00:31]}  f6 {[%clk 0:02:37]} 17. Bf4 {[%clk 0:00:20]}  Ka7 {[%clk 0:02:31]} 18. Bg3 {[%clk 0:00:17]}  Nf5 {[%clk 0:02:31]} 19. Bxd5 {[%clk 0:00:15]}  exd5 {[%clk 0:02:26]} 20. Nf4 {[%clk 0:00:11]}  g5 {[%clk 0:02:21]} 21. Nd3 {[%clk 0:00:11]}  Nxg3 {[%clk 0:02:12]} 22. fxg3 {[%clk 0:00:10]}  Qg4 {[%clk 0:02:12]} 23. Nf2 {[%clk 0:00:09]}  Qh5 {[%clk 0:02:10]} 24. h3 {[%clk 0:00:09]}  fxe5 {[%clk 0:02:08]} 25. g4 {[%clk 0:00:07]}  Qe8 {[%clk 0:02:03]} 26. dxe5 {[%clk 0:00:06]}  Qxe5 {[%clk 0:02:03]} 27. Rfe1 {[%clk 0:00:06]}  Qf4 {[%clk 0:02:02]} 28. Qxf4 {[%clk 0:00:05]}  gxf4 {[%clk 0:02:02]} 29. Nd3 {[%clk 0:00:06]}  Bd6 {[%clk 0:02:00]} 30. Re6 {[%clk 0:00:06]}  f3 {[%clk 0:01:59]} 31. Rf1 {[%clk 0:00:05]}  fxg2 {[%clk 0:01:57]} 32. Kxg2 {[%clk 0:00:05]}  Rd7 {[%clk 0:01:57]} 33. Rf3 {[%clk 0:00:02]}  c5 {[%clk 0:01:57]} 34. Nf4 {[%clk 0:00:01]}  Bxf4 {[%clk 0:01:56]} 35. Rxf4 {[%clk 0:00:02]}  d4 {[%clk 0:01:56]} 36. Rf2 {[%clk 0:00:02]}  c4 {[%clk 0:01:55]} 37. Rd2 {[%clk 0:00:02]}  Rhd8 {[%clk 0:01:54]} 38. Re4 {[%clk 0:00:02]}  Rd5 {[%clk 0:01:53]} 39. Kf3 {[%clk 0:00:01]}  c3 {[%clk 0:01:47]} 40. bxc3 {[%clk 0:00:01]}  dxc3 {[%clk 0:01:48]} 41. Rxd5 {[%clk 0:00:02]}  Rxd5 {[%clk 0:01:47]} 42. Rc4 {[%clk 0:00:02]}  Rxa5 {[%clk 0:01:47]} 43. Rxc3 {[%clk 0:00:02]}  g5 {[%clk 0:01:47]} 0-1


[Site "https://www.chess.com"]

[Event "Titled Tuesday Blitz October 11 Early 2022"]
[White "Martic, Ivan"]
[Black "Lauridsen, Jesper Morch"]
[WhiteFideId "929301"]
[BlackFideId "1401890"]
[WhiteElo "2355"]
[BlackElo "2169"]
[Result "1/2-1/2"]
[Round "01"]
[TimeControl "180+1"]
[Date "2022.10.12"]
[WhiteClock "0:01:25"]
[BlackClock "0:00:55"]

1. e4 {[%clk 0:03:00]}  c5 {[%clk 0:02:59]} 2. Nc3 {[%clk 0:02:59]}  e6 {[%clk 0:02:59]} 3. Nf3 {[%clk 0:02:59]}  a6 {[%clk 0:02:58]} 4. d4 {[%clk 0:02:58]}  cxd4 {[%clk 0:02:58]} 5. Nxd4 {[%clk 0:02:59]}  Bc5 {[%clk 0:02:55]} 6. Nb3 {[%clk 0:02:53]}  Be7 {[%clk 0:02:54]} 7. Bd3 {[%clk 0:02:52]}  d6 {[%clk 0:02:52]} 8. Qg4 {[%clk 0:02:50]}  g6 {[%clk 0:02:42]} 9. O-O {[%clk 0:02:39]}  Nd7 {[%clk 0:02:41]} 10. a4 {[%clk 0:02:35]}  b6 {[%clk 0:02:32]} 11. f4 {[%clk 0:02:30]}  Ngf6 {[%clk 0:02:30]} 12. Qh3 {[%clk 0:02:27]}  Nc5 {[%clk 0:02:11]} 13. Nxc5 {[%clk 0:02:26]}  bxc5 {[%clk 0:02:10]} 14. Bd2 {[%clk 0:02:20]}  Rb8 {[%clk 0:01:58]} 15. b3 {[%clk 0:02:18]}  h5 {[%clk 0:01:57]} 16. Rae1 {[%clk 0:02:02]}  Ng4 {[%clk 0:01:49]} 17. Be2 {[%clk 0:02:02]}  Bf6 {[%clk 0:01:30]} 18. Qf3 {[%clk 0:01:27]}  Bd4+ {[%clk 0:01:26]} 19. Kh1 {[%clk 0:01:27]}  Qh4 {[%clk 0:01:05]} 20. h3 {[%clk 0:01:27]}  Nf2+ {[%clk 0:00:58]} 21. Kh2 {[%clk 0:01:27]}  Ng4+ {[%clk 0:00:57]} 22. Kh1 {[%clk 0:01:26]}  Nf2+ {[%clk 0:00:55]} 23. Kh2 {[%clk 0:01:27]}  Ng4+ {[%clk 0:00:55]} 24. Kh1 {[%clk 0:01:25]} 1/2-1/2


[Site "https://www.chess.com"]

[Event "Titled Tuesday Blitz October 11 Early 2022"]
[White "Martinez Alcantara, Jose Eduardo"]
[Black "Seemann, Jakub"]
[WhiteFideId "3805662"]
[BlackFideId "21874697"]
[WhiteElo "2703"]
[BlackElo "2275"]
[Result "1-0"]
[Round "01"]
[TimeControl "180+1"]
[Date "2022.10.11"]
[WhiteClock "0:00:53"]
[BlackClock "0:00:05"]

1. e4 {[%clk 0:03:00]}  c5 {[%clk 0:02:54]} 2. Nf3 {[%clk 0:03:00]}  d6 {[%clk 0:02:55]} 3. c3 {[%clk 0:02:59]}  Nf6 {[%clk 0:02:54]} 4. h3 {[%clk 0:03:00]}  Nbd7 {[%clk 0:02:54]} 5. Bd3 {[%clk 0:02:59]}  b6 {[%clk 0:02:54]} 6. O-O {[%clk 0:02:59]}  Bb7 {[%clk 0:02:55]} 7. Qe2 {[%clk 0:02:59]}  Qc7 {[%clk 0:02:54]} 8. Na3 {[%clk 0:02:58]}  e6 {[%clk 0:02:46]} 9. Bc2 {[%clk 0:02:58]}  Rc8 {[%clk 0:02:43]} 10. d4 {[%clk 0:02:57]}  cxd4 {[%clk 0:02:40]} 11. cxd4 {[%clk 0:02:58]}  d5 {[%clk 0:02:40]} 12. exd5 {[%clk 0:02:43]}  Bxa3 {[%clk 0:02:17]} 13. dxe6 {[%clk 0:02:39]}  fxe6 {[%clk 0:02:14]} 14. bxa3 {[%clk 0:02:26]}  Bxf3 {[%clk 0:02:05]} 15. Qxe6+ {[%clk 0:02:21]}  Kd8 {[%clk 0:02:05]} 16. Bb3 {[%clk 0:02:18]}  Re8 {[%clk 0:01:55]} 17. Qf5 {[%clk 0:02:18]}  Be4 {[%clk 0:01:53]} 18. Qg5 {[%clk 0:02:19]}  Qd6 {[%clk 0:01:16]} 19. Bf4 {[%clk 0:02:18]}  h6 {[%clk 0:01:10]} 20. Qg3 {[%clk 0:02:12]}  Qxa3 {[%clk 0:01:02]} 21. Rac1 {[%clk 0:02:07]}  Rxc1 {[%clk 0:00:44]} 22. Rxc1 {[%clk 0:02:08]}  Bd5 {[%clk 0:00:35]} 23. Rc3 {[%clk 0:01:50]}  Bxb3 {[%clk 0:00:29]} 24. Bc7+ {[%clk 0:01:49]}  Ke7 {[%clk 0:00:28]} 25. Qxg7+ {[%clk 0:01:48]}  Ke6 {[%clk 0:00:25]} 26. Kh2 {[%clk 0:01:34]}  Qf8 {[%clk 0:00:18]} 27. Qg6 {[%clk 0:01:28]}  Bd5 {[%clk 0:00:16]} 28. Re3+ {[%clk 0:01:28]}  Be4 {[%clk 0:00:11]} 29. Rxe4+ {[%clk 0:01:28]}  Kd5 {[%clk 0:00:12]} 30. Rf4 {[%clk 0:01:20]}  Kc6 {[%clk 0:00:11]} 31. Be5 {[%clk 0:01:14]}  Qg8 {[%clk 0:00:06]} 32. Qxh6 {[%clk 0:01:07]}  Re6 {[%clk 0:00:04]} 33. Bxf6 {[%clk 0:01:07]}  Kb7 {[%clk 0:00:04]} 34. d5 {[%clk 0:01:07]}  Rd6 {[%clk 0:00:03]} 35. Qh4 {[%clk 0:01:03]}  Qxd5 {[%clk 0:00:03]} 36. Be7 {[%clk 0:01:02]}  Re6 {[%clk 0:00:03]} 37. Bg5 {[%clk 0:00:58]}  Qe5 {[%clk 0:00:03]} 38. Qg3 {[%clk 0:00:58]}  Nc5 {[%clk 0:00:02]} 39. h4 {[%clk 0:00:57]}  Ka6 {[%clk 0:00:02]} 40. Rg4 {[%clk 0:00:56]}  Ne4 {[%clk 0:00:02]} 41. Qxe5 {[%clk 0:00:56]}  Rxe5 {[%clk 0:00:03]} 42. f3 {[%clk 0:00:56]}  Nd6 {[%clk 0:00:03]} 43. Bf4 {[%clk 0:00:56]}  Rd5 {[%clk 0:00:03]} 44. Rg5 {[%clk 0:00:56]}  Rxg5 {[%clk 0:00:02]} 45. hxg5 {[%clk 0:00:56]}  Nf5 {[%clk 0:00:03]} 46. g4 {[%clk 0:00:56]}  Ne7 {[%clk 0:00:04]} 47. Bd6 {[%clk 0:00:55]}  Ng8 {[%clk 0:00:03]} 48. f4 {[%clk 0:00:55]}  Kb7 {[%clk 0:00:03]} 49. f5 {[%clk 0:00:55]}  Kc6 {[%clk 0:00:04]} 50. Bf8 {[%clk 0:00:54]}  Kd5 {[%clk 0:00:04]} 51. Kg3 {[%clk 0:00:54]}  Ke4 {[%clk 0:00:05]} 52. Kh4 {[%clk 0:00:54]}  Kf4 {[%clk 0:00:06]} 53. f6 {[%clk 0:00:54]}  Ke5 {[%clk 0:00:04]} 54. f7 {[%clk 0:00:53]}  Ke6 {[%clk 0:00:05]} 55. fxg8=Q+ {[%clk 0:00:53]} 1-0


[Site "https://www.chess.com"]

[Event "Titled Tuesday Blitz October 11 Early 2022"]
[White "Melaugh, Shane"]
[Black "Bharath Subramaniyam H"]
[WhiteFideId "2509580"]
[BlackFideId "46634827"]
[WhiteElo "2025"]
[BlackElo "2395"]
[Result "0-1"]
[Round "01"]
[TimeControl "180+1"]
[Date "2022.10.12"]
[WhiteClock "0:01:57"]
[BlackClock "0:02:20"]

1. c4 {[%clk 0:02:58]}  c6 {[%clk 0:02:57]} 2. Nc3 {[%clk 0:02:54]}  d5 {[%clk 0:02:56]} 3. d4 {[%clk 0:02:55]}  e6 {[%clk 0:02:55]} 4. Nf3 {[%clk 0:02:55]}  dxc4 {[%clk 0:02:47]} 5. a4 {[%clk 0:02:55]}  Bb4 {[%clk 0:02:45]} 6. e3 {[%clk 0:02:55]}  b5 {[%clk 0:02:44]} 7. Be2 {[%clk 0:02:52]}  Bb7 {[%clk 0:02:41]} 8. O-O {[%clk 0:02:52]}  a6 {[%clk 0:02:42]} 9. e4 {[%clk 0:02:41]}  Ne7 {[%clk 0:02:40]} 10. Bg5 {[%clk 0:02:38]}  h6 {[%clk 0:02:38]} 11. Bh4 {[%clk 0:02:36]}  Nd7 {[%clk 0:02:38]} 12. e5 {[%clk 0:02:29]}  Qc7 {[%clk 0:02:37]} 13. Ne4 {[%clk 0:02:19]}  Nf5 {[%clk 0:02:36]} 14. axb5 {[%clk 0:02:14]}  cxb5 {[%clk 0:02:34]} 15. Nc3 {[%clk 0:02:07]}  O-O {[%clk 0:02:29]} 16. d5 {[%clk 0:01:59]}  Bxc3 {[%clk 0:02:26]} 17. d6 {[%clk 0:01:59]}  Qc6 {[%clk 0:02:24]} 18. bxc3 {[%clk 0:01:59]}  Nxh4 {[%clk 0:02:24]} 19. Nxh4 {[%clk 0:02:00]}  Nxe5 {[%clk 0:02:24]} 20. Nf3 {[%clk 0:01:59]}  Rad8 {[%clk 0:02:24]} 21. Nxe5 {[%clk 0:01:57]}  Qxg2# {[%clk 0:02:20]} 0-1


[Site "https://www.chess.com"]

[Event "Titled Tuesday Blitz October 11 Early 2022"]
[White "Melikhov, Evgeny V."]
[Black "Molina, Roberto Junio Brito"]
[WhiteFideId "4122046"]
[BlackFideId "2109450"]
[WhiteElo "2169"]
[BlackElo "2388"]
[Result "0-1"]
[Round "01"]
[TimeControl "180+1"]
[Date "2022.10.12"]
[WhiteClock "0:00:04"]
[BlackClock "0:00:16"]

1. d4 {[%clk 0:03:00]}  d5 {[%clk 0:02:58]} 2. c4 {[%clk 0:03:00]}  c6 {[%clk 0:02:57]} 3. Nc3 {[%clk 0:03:00]}  Nf6 {[%clk 0:02:57]} 4. e3 {[%clk 0:02:56]}  a6 {[%clk 0:02:56]} 5. c5 {[%clk 0:02:56]}  Bf5 {[%clk 0:02:54]} 6. f4 {[%clk 0:02:53]}  e6 {[%clk 0:02:53]} 7. Nf3 {[%clk 0:02:53]}  h6 {[%clk 0:02:52]} 8. Be2 {[%clk 0:02:53]}  Nbd7 {[%clk 0:02:51]} 9. O-O {[%clk 0:02:53]}  Ne4 {[%clk 0:02:49]} 10. Nxe4 {[%clk 0:02:45]}  Bxe4 {[%clk 0:02:49]} 11. Bd2 {[%clk 0:02:42]}  Be7 {[%clk 0:02:44]} 12. b4 {[%clk 0:02:34]}  O-O {[%clk 0:02:43]} 13. a4 {[%clk 0:02:28]}  f6 {[%clk 0:02:42]} 14. Bc3 {[%clk 0:02:23]}  Qc7 {[%clk 0:02:31]} 15. b5 {[%clk 0:02:17]}  axb5 {[%clk 0:02:20]} 16. axb5 {[%clk 0:02:17]}  cxb5 {[%clk 0:02:21]} 17. Bxb5 {[%clk 0:02:11]}  Rxa1 {[%clk 0:02:19]} 18. Qxa1 {[%clk 0:02:10]}  Nb8 {[%clk 0:01:53]} 19. Qa5 {[%clk 0:01:43]}  Qc8 {[%clk 0:01:49]} 20. Ra1 {[%clk 0:01:31]}  Nc6 {[%clk 0:01:46]} 21. Bxc6 {[%clk 0:01:23]}  Qxc6 {[%clk 0:01:43]} 22. Ra2 {[%clk 0:01:09]}  e5 {[%clk 0:01:19]} 23. dxe5 {[%clk 0:00:52]}  Bxf3 {[%clk 0:01:11]} 24. exf6 {[%clk 0:00:32]}  Bxc5 {[%clk 0:00:47]} 25. gxf3 {[%clk 0:00:15]}  Bxe3+ {[%clk 0:00:45]} 26. Kg2 {[%clk 0:00:15]}  d4 {[%clk 0:00:43]} 27. Bd2 {[%clk 0:00:08]}  Rxf6 {[%clk 0:00:32]} 28. Bxe3 {[%clk 0:00:07]}  dxe3 {[%clk 0:00:33]} 29. Qe5 {[%clk 0:00:05]}  Re6 {[%clk 0:00:28]} 30. Ra8+ {[%clk 0:00:03]}  Kh7 {[%clk 0:00:26]} 31. Qf5+ {[%clk 0:00:03]}  Rg6+ {[%clk 0:00:26]} 32. Kh3 {[%clk 0:00:04]}  Qxf3+ {[%clk 0:00:17]} 33. Kh4 {[%clk 0:00:04]}  Qf2+ {[%clk 0:00:16]} 34. Kh3 {[%clk 0:00:04]}  Qg2+ {[%clk 0:00:16]} 0-1


[Site "https://www.chess.com"]